[Event "72nd RUS-ch Higher League 2019"]
[Site "Yaroslavl"]
[Date "2019.06.29"]
[Round "3.24"]
[White "Khanin, Semen"]
[Black "Kardashevskiy, Evgeny"]
[Result "1/2-1/2"]
[ECO "A05"]
[WhiteElo "2529"]
[BlackElo "2429"]
[Annotator "ChessBase"]
[PlyCount "127"]
[EventDate "2019.06.27"]
[EventType "swiss"]
[EventCountry "RUS"]
[SourceTitle "playchess.com"]
[Source "ChessBase"]
[SourceQuality "1"]
[TimeControl "40/5400+30:1800+30"]

1. Nf3 {[%emt 0:00:00]} Nf6 {[%emt 0:00:00]} 2. c4 {[%emt 0:00:00]} e6 {[%emt 0:00:19]} 3. b3 {[%emt 0:00:00]} d5 {[%emt 0:00:57]} 4. Bb2 {[%emt 0:00:06]} Be7 {[%emt 0:00:25]} 5. e3 {[%emt 0:00:16]} O-O {[%emt 0:00:16]} 6. Nc3 {[%emt 0:00:08]} c5 {[%emt 0:00:20]} 7. cxd5 {[%emt 0:00:08]} exd5 {[%emt 0:00:14]} 8. d4 {[%emt 0:00:07]} Nc6 {[%emt 0:00:16]} 9. Be2 {[%emt 0:00:10]} Ne4 {[%emt 0:00:44]} 10. dxc5 {[%emt 0:00:19]} Bf6 {[%emt 0:00:26]} 11. Rc1 {[%emt 0:01:00]} Qa5 {[%emt 0:00:19]} 12. Nd4 {[%emt 0:00:16]} Nxc5 {[%emt 0:00:22]} 13. Nxc6 {[%emt 0:00:10]} bxc6 {[%emt 0:00:04]} 14. O-O {[%emt 0:00:22]} Ne4 {[%emt 0:00:44]} 15. Qc2 {[%emt 0:00:49]} Nxc3 {[%emt 0:01:53]} 16. Bxc3 {[%emt 0:00:06]} Bxc3 {[%emt 0:00:08]} 17. Qxc3 {[%emt 0:00:03]} Qxa2 {[%emt 0:00:26]} 18. Rc2 {[%emt 0:00:05]} Qa3 {[%emt 0:00:21]} 19. Ra1 {[%emt 0:00:07]} Qe7 {[%emt 0:00:22]} 20. Qxc6 {[%emt 0:00:10]} Be6 {[%emt 0:00:17]} 21. Qc5 {[%emt 0:12:06]} Qxc5 {[%emt 0:00:08]} 22. Rxc5 {[%emt 0:00:04]} Rfd8 {[%emt 0:01:13]} 23. b4 {[%emt 0:02:45]} d4 {[%emt 0:16:10]} 24. exd4 {[%emt 0:00:05]} Rxd4 {[%emt 0:00:22]} 25. b5 {[%emt 0:00:15]} Rb4 {[%emt 0:29:32]} 26. h3 {[%emt 0:19:40]} g6 {[%emt 0:03:27]} 27. Rc2 {[%emt 0:16:45]} h5 {[%emt 0:07:05]} 28. Rd2 {[%emt 0:06:11]} Kf8 {[%emt 0:07:38]} 29. Kh2 {[%emt 0:04:00]} h4 {[%emt 0:04:37]} 30. Bf3 {[%emt 0:03:08]} Rc8 {[%emt 0:01:35]} 31. Bc6 {[%emt 0:00:11]} Rc7 {[%emt 0:00:43]} 32. Rd8+ {[%emt 0:00:13]} Ke7 {[%emt 0:01:12]} 33. Ra8 {[%emt 0:00:16]} Rb2 {[%emt 0:01:19]} 34. R8xa7 {[%emt 0:01:51]} Rxa7 {[%emt 0:00:08]} 35. Rxa7+ {[%emt 0:00:03]} Kd6 {[%emt 0:00:12]} 36. Ra4 {[%emt 0:02:20]} g5 {[%emt 0:01:00]} 37. f4 {[%emt 0:01:13]} g4 {[%emt 0:05:39]} 38. hxg4 {[%emt 0:00:31]} Bxg4 {[%emt 0:00:08]} 39. f5 {[%emt 0:05:21]} Bxf5 {[%emt 0:01:42]} 40. Rxh4 {[%emt 0:00:00]} Ke5 {[%emt 0:00:00]} 41. Rh5 {[%emt 0:02:33]} Kf4 {[%emt 0:04:35]} 42. Rh8 {[%emt 0:00:14]} Bd3 {[%emt 0:01:32]} 43. Rb8 {[%emt 0:09:36]} Be4 {[%emt 0:01:32]} 44. Bxe4 {[%emt 0:00:24]} Kxe4 {[%emt 0:00:08]} 45. Kh3 {[%emt 0:00:23]} Kf5 {[%emt 0:00:40]} 46. Kg3 {[%emt 0:08:26]} Rb3+ {[%emt 0:00:59]} 47. Kh4 {[%emt 0:00:40]} Rb4+ {[%emt 0:01:24]} 48. Kh3 {[%emt 0:01:49]} Kg5 {[%emt 0:01:05]} 49. g3 {[%emt 0:01:03]} Rb2 {[%emt 0:00:35]} 50. b6 {[%emt 0:00:11]} Rb4 {[%emt 0:01:29]} 51. Kg2 {[%emt 0:01:23]} Rb3 {[%emt 0:01:37]} 52. Kf2 {[%emt 0:00:16]} Kf5 {[%emt 0:01:39]} 53. Rb7 {[%emt 0:01:13]} Kf6 {[%emt 0:01:59]} 54. Kg2 {[%emt 0:00:31]} Kg6 {[%emt 0:00:47]} 55. Kh3 {[%emt 0:00:09]} Rb4 {[%emt 0:00:21]} 56. Rb8 {[%emt 0:00:45]} Kf5 {[%emt 0:00:29]} 57. Rb7 {[%emt 0:00:34]} Kg6 {[%emt 0:00:31]} 58. Rb8 {[%emt 0:03:50]} Kf5 {[%emt 0:00:20]} 59. Kg2 {[%emt 0:00:24]} Rb3 {[%emt 0:00:49]} 60. Kf2 {[%emt 0:00:09]} Kf6 {[%emt 0:03:39]} 61. Ke2 {[%emt 0:02:00]} Rxg3 {[%emt 0:01:01]} 62. Kd2 {[%emt 0:00:03]} Ke7 {[%emt 0:02:50]} 63. Kc2 {[%emt 0:00:36]} Kd7 {[%emt 0:00:34]} 64. b7 {[%emt 0:00:06]} 1/2-1/2

[Event "72nd RUS-ch Higher League 2019"]
[Site "Yaroslavl"]
[Date "2019.06.29"]
[Round "3.25"]
[White "Drygalov, Sergey"]
[Black "Salemgareev, Tagir"]
[Result "0-1"]
[ECO "D12"]
[WhiteElo "2492"]
[BlackElo "2412"]
[Annotator "ChessBase"]
[PlyCount "90"]
[EventDate "2019.06.27"]
[EventType "swiss"]
[EventCountry "RUS"]
[SourceTitle "playchess.com"]
[Source "ChessBase"]
[SourceQuality "1"]
[TimeControl "40/5400+30:1800+30"]

1. d4 {[%emt 0:00:00]} d5 {[%emt 0:00:55]} 2. c4 {[%emt 0:00:16]} c6 {[%emt 0:00:10]} 3. Nf3 {[%emt 0:00:03]} Nf6 {[%emt 0:00:04]} 4. e3 {[%emt 0:00:02]} Bf5 {[%emt 0:00:05]} 5. Nc3 {[%emt 0:00:04]} e6 {[%emt 0:00:03]} 6. Nh4 {[%emt 0:00:04]} Be4 {[%emt 0:00:02]} 7. f3 {[%emt 0:00:07]} Bg6 {[%emt 0:00:04]} 8. Qb3 {[%emt 0:00:10]} Qc7 {[%emt 0:00:05]} 9. Bd2 {[%emt 0:00:05]} Be7 {[%emt 0:00:04]} 10. cxd5 {[%emt 0:00:04]} cxd5 {[%emt 0:03:10]} 11. Nxg6 {[%emt 0:00:05]} hxg6 {[%emt 0:00:04]} 12. O-O-O {[%emt 0:00:04]} Nc6 {[%emt 0:00:23]} 13. Kb1 {[%emt 0:00:04]} a6 {[%emt 0:13:49]} 14. Rc1 {[%emt 0:00:04]} Rc8 {[%emt 0:00:53]} 15. Bd3 {[%emt 0:00:12]} Na5 {[%emt 0:02:38]} 16. Qa4+ {[%emt 0:05:14]} Nc6 {[%emt 0:00:36]} 17. g3 {[%emt 0:10:41]} Nd7 {[%emt 0:03:06]} 18. Ne2 {[%emt 0:02:56]} g5 {[%emt 0:02:58]} 19. e4 {[%emt 0:02:19]} Nb6 {[%emt 0:01:59]} 20. Qb3 {[%emt 0:02:13]} g6 {[%emt 0:05:56]} 21. h3 {[%emt 0:04:18]} Qd8 {[%emt 0:08:15]} 22. exd5 {[%emt 0:06:27]} exd5 {[%emt 0:00:46]} 23. f4 {[%emt 0:01:30]} gxf4 {[%emt 0:04:01]} 24. Nxf4 {[%emt 0:02:49]} O-O {[%emt 0:05:08]} 25. Bc3 {[%emt 0:02:34]} Bf6 {[%emt 0:03:45]} 26. Bxg6 {[%emt 0:11:43]} fxg6 {[%emt 0:09:22]} 27. Ne6 {[%emt 0:00:43]} Qe8 {[%emt 0:02:57]} 28. Nxf8 {[%emt 0:07:22]} Nc4 {[%emt 0:02:41]} 29. Qxb7 {[%emt 0:02:48]} Qxf8 {[%emt 0:05:53]} 30. Rhf1 {[%emt 0:03:25]} Nd6 {[%emt 0:06:57]} 31. Qxa6 {[%emt 0:05:36]} Ne4 {[%emt 0:00:34]} 32. Rce1 {[%emt 0:02:45]} Nxc3+ {[%emt 0:05:57]} 33. bxc3 {[%emt 0:00:27]} Rb8+ {[%emt 0:00:05]} 34. Kc2 {[%emt 0:07:17]} Qd6 {[%emt 0:00:53]} 35. Qd3 {[%emt 0:00:09]} Bxd4 {[%emt 0:05:14]} 36. Rb1 {[%emt 0:00:39]} Rc8 {[%emt 0:00:42]} 37. Rfd1 {[%emt 0:00:58]} Kh8 {[%emt 0:02:07]} 38. Rb3 {[%emt 0:01:48]} Bg7 {[%emt 0:00:20]} 39. Kb1 {[%emt 0:02:55]} Na5 {[%emt 0:02:18]} 40. Rb4 {[%emt 0:00:00]} Bxc3 {[%emt 0:00:00]} 41. Rb5 {[%emt 0:03:09]} Bg7 {[%emt 0:02:31]} 42. a3 {[%emt 0:02:32]} Nc4 {[%emt 0:06:17]} 43. Ka2 {[%emt 0:00:11]} Ra8 {[%emt 0:06:14]} 44. Rb3 {[%emt 0:00:05]} Qc5 {[%emt 0:00:19]} 45. Rf1 {[%emt 0:04:00]} Nxa3 {[%emt 0:01:30]} 0-1

[Event "72nd RUS-ch Higher League 2019"]
[Site "Yaroslavl"]
[Date "2019.06.29"]
[Round "3.26"]
[White "Eraschenkov, Denis"]
[Black "Airapetian, Gor"]
[Result "1-0"]
[ECO "A11"]
[WhiteElo "2379"]
[BlackElo "2442"]
[Annotator "NA"]
[PlyCount "71"]
[EventDate "2019.06.27"]
[EventType "swiss"]
[EventCountry "RUS"]
[SourceTitle "playchess.com"]
[Source "ChessBase"]
[SourceQuality "1"]
[TimeControl "40/5400+30:1800+30"]

1. c4 {[%emt 0:00:00]} c6 {[%emt 0:00:00]} 2. Nf3 {[%emt 0:00:20]} d5 {[%emt 0:00:11]} 3. e3 {[%emt 0:00:34]} Nf6 {[%emt 0:00:18]} 4. b3 {[%emt 0:01:50]} Bf5 {[%emt 0:03:38]} 5. Bb2 {[%emt 0:00:24]} e6 {[%emt 0:00:17]} 6. Be2 {[%emt 0:02:35]} h6 {[%emt 0:01:05]} 7. Ne5 {[%emt 0:06:19]} Be7 {[%emt 0:07:27]} 8. cxd5 {[%emt 0:17:44]} Qxd5 {[%emt 0:21:12]} 9. O-O {[%emt 0:03:00]} O-O {[%emt 0:00:19]} 10. d4 {[%emt 0:01:33]} Qd8 {[%emt 0:07:01]} 11. f3 {[%emt 0:06:55]} Bxb1 {[%emt 0:12:09]} 12. Qxb1 {[%emt 0:03:23]} Nbd7 {[%emt 0:00:07]} 13. f4 {[%emt 0:01:23]} Nd5 {[%emt 0:19:29]} 14. Rf3 {[%emt 0:11:12]} Nxe5 {[%emt 0:07:20]} 15. fxe5 {[%emt 0:00:26]} Bg5 {[%emt 0:02:52]} 16. Qe4 {[%emt 0:05:05]} f5 {[%emt 0:08:23]} 17. exf6 {[%emt 0:01:48]} Rxf6 {[%emt 0:01:15]} 18. Rxf6 {[%emt 0:06:09]} Qxf6 {[%emt 0:01:13]} 19. Rf1 {[%emt 0:00:13]} Qe7 {[%emt 0:01:26]} 20. Bd3 {[%emt 0:00:43]} Nf6 {[%emt 0:00:10]} 21. Qf3 {[%emt 0:01:13]} Rf8 {[%emt 0:01:40]} 22. e4 {[%emt 0:03:57]} Nd7 {[%emt 0:00:13]} 23. Qe2 {[%emt 0:06:49]} Rxf1+ {[%emt 0:00:11]} 24. Kxf1 {[%emt 0:01:15]} Qf7+ {[%emt 0:02:16]} 25. Kg1 {[%emt 0:00:26]} Qf4 {[%emt 0:01:08]} 26. Bc4 {[%emt 0:03:37]} Nf8 {[%emt 0:01:02]} 27. d5 {[%emt 0:01:49]} exd5 {[%emt 0:00:31]} 28. exd5 {[%emt 0:00:07]} b5 {[%emt 0:00:02]} 29. Bd3 {[%emt 0:00:27]} cxd5 {[%emt 0:00:45]} 30. Bxb5 {[%emt 0:00:07]} Bf6 {[%emt 0:00:05]} 31. g3 {[%emt 0:03:44]} Qf5 {[%emt 0:01:09]} 32. Bd3 {[%emt 0:03:51]} Qg5 {[%emt 0:00:01]} 33. Ba3 {[%emt 0:00:18]} Bd4+ {[%emt 0:01:01]} 34. Kg2 {[%emt 0:00:10]} Bb6 {[%emt 0:00:19]} 35. Qe8 {[%emt 0:04:21]} Qd2+ {[%emt 0:00:43]} 36. Be2 {[%emt 0:00:18]} 1-0

[Event "72nd RUS-ch Higher League 2019"]
[Site "Yaroslavl"]
[Date "2019.06.29"]
[Round "3.27"]
[White "Mirzaev, Aziz"]
[Black "Ibadov, Dashgyn"]
[Result "1/2-1/2"]
[ECO "A70"]
[WhiteElo "2433"]
[BlackElo "2298"]
[Annotator "NA"]
[PlyCount "136"]
[EventDate "2019.06.27"]
[EventType "swiss"]
[EventCountry "RUS"]
[SourceTitle "playchess.com"]
[Source "ChessBase"]
[SourceQuality "1"]
[TimeControl "40/5400+30:1800+30"]

1. d4 {[%emt 0:00:00]} e6 {[%emt 0:00:00]} 2. c4 {[%emt 0:00:36]} Nf6 {[%emt 0:00:00]} 3. Nc3 {[%emt 0:01:43]} c5 {[%emt 0:00:00]} 4. d5 {[%emt 0:00:38]} exd5 {[%emt 0:00:00]} 5. cxd5 {[%emt 0:00:04]} d6 {[%emt 0:00:04]} 6. e4 {[%emt 0:01:00]} g6 {[%emt 0:00:09]} 7. Nf3 {[%emt 0:00:46]} Bg7 {[%emt 0:00:10]} 8. Be2 {[%emt 0:01:53]} Bg4 {[%emt 0:05:39]} 9. O-O {[%emt 0:04:17]} O-O {[%emt 0:00:33]} 10. Re1 {[%emt 0:07:01]} a6 {[%emt 0:08:26]} 11. Nd2 {[%emt 0:13:39]} Bxe2 {[%emt 0:00:40]} 12. Rxe2 {[%emt 0:00:03]} b5 {[%emt 0:02:32]} 13. a4 {[%emt 0:02:34]} b4 {[%emt 0:01:41]} 14. Ncb1 {[%emt 0:00:03]} Re8 {[%emt 0:02:56]} 15. f3 {[%emt 0:04:44]} Nh5 {[%emt 0:12:59]} 16. Nc4 {[%emt 0:01:57]} Qf6 {[%emt 0:27:25]} 17. Be3 {[%emt 0:10:18]} Nd7 {[%emt 0:02:07]} 18. Nbd2 {[%emt 0:06:34]} g5 {[%emt 0:05:41]} 19. g3 {[%emt 0:08:45]} Ne5 {[%emt 0:03:25]} 20. Nxe5 {[%emt 0:02:53]} Rxe5 {[%emt 0:00:21]} 21. Nc4 {[%emt 0:05:08]} Qxf3 {[%emt 0:06:43]} 22. Nxe5 {[%emt 0:00:47]} Bxe5 {[%emt 0:00:04]} 23. Qd3 {[%emt 0:07:05]} Nf6 {[%emt 0:06:01]} 24. Rf1 {[%emt 0:02:46]} Qxe4 {[%emt 0:00:13]} 25. Qxe4 {[%emt 0:00:53]} Nxe4 {[%emt 0:00:04]} 26. Bc1 {[%emt 0:00:27]} Bd4+ {[%emt 0:01:51]} 27. Kg2 {[%emt 0:00:01]} Nf6 {[%emt 0:00:50]} 28. Rf5 {[%emt 0:07:23]} h6 {[%emt 0:00:28]} 29. Be3 {[%emt 0:03:52]} Nd7 {[%emt 0:08:56]} 30. Bxd4 {[%emt 0:06:04]} cxd4 {[%emt 0:00:01]} 31. Re4 {[%emt 0:01:02]} a5 {[%emt 0:00:23]} 32. Rxd4 {[%emt 0:00:12]} Nc5 {[%emt 0:00:06]} 33. Rf6 {[%emt 0:00:32]} Rd8 {[%emt 0:01:22]} 34. Rc4 {[%emt 0:00:47]} Nxa4 {[%emt 0:04:32]} 35. Rc7 {[%emt 0:00:25]} Rf8 {[%emt 0:00:27]} 36. Rxd6 {[%emt 0:00:35]} Nxb2 {[%emt 0:00:09]} 37. Rb6 {[%emt 0:00:29]} Rd8 {[%emt 0:00:58]} 38. Rb5 {[%emt 0:00:33]} Nd1 {[%emt 0:00:31]} 39. Rxa5 {[%emt 0:00:29]} b3 {[%emt 0:00:27]} 40. Rc1 {[%emt 0:00:00]} Rxd5 {[%emt 0:00:00]} 41. Rxd5 {[%emt 0:02:57]} Ne3+ {[%emt 0:00:36]} 42. Kf3 {[%emt 0:00:16]} Nxd5 {[%emt 0:00:04]} 43. Rb1 {[%emt 0:00:22]} Kg7 {[%emt 0:00:34]} 44. Rxb3 {[%emt 0:00:02]} Kg6 {[%emt 0:04:11]} 45. Rb5 {[%emt 0:07:18]} Nf6 {[%emt 0:02:02]} 46. Ra5 {[%emt 0:02:49]} Nd7 {[%emt 0:02:03]} 47. Ke4 {[%emt 0:02:02]} Nf6+ {[%emt 0:02:47]} 48. Kd4 {[%emt 0:00:05]} Ng4 {[%emt 0:00:49]} 49. Ra2 {[%emt 0:00:45]} f6 {[%emt 0:02:03]} 50. Kd5 {[%emt 0:02:16]} Ne5 {[%emt 0:01:13]} 51. Rf2 {[%emt 0:02:22]} Kf7 {[%emt 0:10:29]} 52. h3 {[%emt 0:02:54]} h5 {[%emt 0:01:02]} 53. Rc2 {[%emt 0:03:20]} Kg6 {[%emt 0:03:41]} 54. Ke6 {[%emt 0:00:26]} Nf3 {[%emt 0:00:25]} 55. Rc4 {[%emt 0:04:03]} Ng1 {[%emt 0:00:18]} 56. Rc8 {[%emt 0:02:44]} Nxh3 {[%emt 0:02:16]} 57. Rf8 {[%emt 0:01:49]} h4 {[%emt 0:01:29]} 58. Rxf6+ {[%emt 0:00:13]} Kg7 {[%emt 0:02:25]} 59. g4 {[%emt 0:00:29]} Nf4+ {[%emt 0:01:02]} 60. Kf5 {[%emt 0:00:02]} h3 {[%emt 0:00:20]} 61. Rd6 {[%emt 0:03:37]} h2 {[%emt 0:00:05]} 62. Rd7+ {[%emt 0:00:21]} Kh6 {[%emt 0:01:27]} 63. Rd8 {[%emt 0:00:47]} Kg7 {[%emt 0:00:31]} 64. Rd7+ {[%emt 0:00:29]} Kh6 {[%emt 0:00:04]} 65. Rd6+ {[%emt 0:00:26]} Kg7 {[%emt 0:00:06]} 66. Rd1 {[%emt 0:00:35]} Ne2 {[%emt 0:00:06]} 67. Kxg5 {[%emt 0:00:31]} Ng3 {[%emt 0:00:07]} 68. Kf4 {[%emt 0:00:28]} h1=Q {[%emt 0:00:11] Ke4} 1/2-1/2

[Event "72nd RUS-ch Higher League 2019"]
[Site "Yaroslavl"]
[Date "2019.06.29"]
[Round "3.28"]
[White "Vlasenko, Miroslav"]
[Black "Lesovoi, Evgenij"]
[Result "1/2-1/2"]
[ECO "B23"]
[WhiteElo "2417"]
[BlackElo "2366"]
[Annotator "NA"]
[PlyCount "48"]
[EventDate "2019.06.27"]
[EventType "swiss"]
[EventCountry "RUS"]
[SourceTitle "playchess.com"]
[Source "ChessBase"]
[SourceQuality "1"]
[TimeControl "40/5400+30:1800+30"]

1. e4 {[%emt 0:00:00]} c5 {[%emt 0:02:28]} 2. Nc3 {[%emt 0:01:37]} d6 {[%emt 0:01:36]} 3. f4 {[%emt 0:00:08]} Nc6 {[%emt 0:03:13]} 4. Nf3 {[%emt 0:00:07]} g6 {[%emt 0:01:49]} 5. Bc4 {[%emt 0:01:14]} Bg7 {[%emt 0:00:38]} 6. O-O {[%emt 0:00:46]} e6 {[%emt 0:05:16]} 7. d3 {[%emt 0:00:17]} Nge7 {[%emt 0:01:23]} 8. Qe1 {[%emt 0:01:05]} Nd4 {[%emt 0:05:32]} 9. Nxd4 {[%emt 0:02:13]} cxd4 {[%emt 0:00:30]} 10. Ne2 {[%emt 0:00:21]} O-O {[%emt 0:00:22]} 11. Bb3 {[%emt 0:05:17]} b5 {[%emt 0:02:35]} 12. f5 {[%emt 0:01:02]} exf5 {[%emt 0:05:34]} 13. Qh4 {[%emt 0:08:50]} d5 {[%emt 0:20:46]} 14. exd5 {[%emt 0:10:02]} Nxd5 {[%emt 0:02:27]} 15. Bg5 {[%emt 0:02:19]} Qd7 {[%emt 0:01:05]} 16. Nxd4 {[%emt 0:02:36]} Bb7 {[%emt 0:01:36]} 17. c4 {[%emt 0:20:02]} Nc7 {[%emt 0:10:06]} 18. Bf6 {[%emt 0:04:59]} Bxf6 {[%emt 0:01:08]} 19. Qxf6 {[%emt 0:00:06]} Rad8 {[%emt 0:02:31]} 20. Nxf5 {[%emt 0:05:10]} gxf5 {[%emt 0:00:07]} 21. Qg5+ {[%emt 0:00:04]} Kh8 {[%emt 0:00:05]} 22. Qf6+ {[%emt 0:00:11]} Kg8 {[%emt 0:00:06]} 23. Qg5+ {[%emt 0:00:02]} Kh8 {[%emt 0:00:06]} 24. Qf6+ {[%emt 0:00:03]} Kg8 {[%emt 0:00:06]} 1/2-1/2

[Event "72nd RUS-ch Higher League 2019"]
[Site "Yaroslavl"]
[Date "2019.06.29"]
[Round "3.29"]
[White "Sadovsky, Artem"]
[Black "Kanter, Eduard"]
[Result "1-0"]
[ECO "A05"]
[WhiteElo "2416"]
[BlackElo "2392"]
[Annotator "ChessBase"]
[PlyCount "155"]
[EventDate "2019.06.27"]
[EventType "swiss"]
[EventCountry "RUS"]
[SourceTitle "playchess.com"]
[Source "ChessBase"]
[SourceQuality "1"]
[TimeControl "40/5400+30:1800+30"]

1. Nf3 {[%emt 0:00:00]} Nf6 {[%emt 0:01:28]} 2. g3 {[%emt 0:00:00]} g6 {[%emt 0:02:45]} 3. Bg2 {[%emt 0:00:07]} Bg7 {[%emt 0:02:17]} 4. O-O {[%emt 0:00:20]} d5 {[%emt 0:01:08]} 5. c4 {[%emt 0:00:18]} c6 {[%emt 0:01:50]} 6. Qc2 {[%emt 0:02:06]} O-O {[%emt 0:00:34]} 7. b3 {[%emt 0:01:28]} a5 {[%emt 0:13:57]} 8. Bb2 {[%emt 0:00:53]} a4 {[%emt 0:00:45]} 9. bxa4 {[%emt 0:04:57]} Qa5 {[%emt 0:07:25]} 10. cxd5 {[%emt 0:03:34]} cxd5 {[%emt 0:14:35]} 11. Nc3 {[%emt 0:00:30]} Nc6 {[%emt 0:00:23]} 12. d4 {[%emt 0:07:23]} Bf5 {[%emt 0:18:13]} 13. Qb3 {[%emt 0:06:18]} Ne4 {[%emt 0:00:14]} 14. e3 {[%emt 0:02:19]} e6 {[%emt 0:12:12]} 15. Rfc1 {[%emt 0:22:40]} Rfb8 {[%emt 0:00:31]} 16. Nh4 {[%emt 0:14:33]} Nxc3 {[%emt 0:01:07]} 17. Bxc3 {[%emt 0:00:13]} Qxa4 {[%emt 0:00:08]} 18. Nxf5 {[%emt 0:06:48]} Qxb3 {[%emt 0:01:01]} 19. axb3 {[%emt 0:00:16]} gxf5 {[%emt 0:00:04]} 20. Bf1 {[%emt 0:00:21]} Bf8 {[%emt 0:00:46]} 21. Bb5 {[%emt 0:00:42]} Ra3 {[%emt 0:05:16]} 22. Rxa3 {[%emt 0:01:32]} Bxa3 {[%emt 0:00:05]} 23. Ra1 {[%emt 0:02:39]} Bd6 {[%emt 0:00:39]} 24. Kf1 {[%emt 0:02:44]} Rc8 {[%emt 0:01:27]} 25. Bd2 {[%emt 0:02:52]} Kf8 {[%emt 0:02:10]} 26. Ke2 {[%emt 0:00:27]} Ke7 {[%emt 0:00:14]} 27. Ra4 {[%emt 0:02:21]} Kf6 {[%emt 0:07:41]} 28. Bd3 {[%emt 0:00:17]} Ne7 {[%emt 0:01:18]} 29. Ra7 {[%emt 0:02:01]} Rb8 {[%emt 0:01:02]} 30. h3 {[%emt 0:02:25]} h5 {[%emt 0:01:14]} 31. h4 {[%emt 0:00:16]} Nc8 {[%emt 0:00:55]} 32. Ra5 {[%emt 0:01:31]} Bc7 {[%emt 0:00:26]} 33. Ra1 {[%emt 0:00:38]} Nd6 {[%emt 0:01:13]} 34. Bb4 {[%emt 0:01:33]} Ne4 {[%emt 0:00:15]} 35. Ra7 {[%emt 0:04:51]} Bb6 {[%emt 0:00:26]} 36. Ra1 {[%emt 0:01:20]} Rc8 {[%emt 0:00:15]} 37. Ke1 {[%emt 0:02:36]} Kg6 {[%emt 0:00:34]} 38. f3 {[%emt 0:00:14]} Nf6 {[%emt 0:00:29]} 39. Ke2 {[%emt 0:01:55]} Kg7 {[%emt 0:00:26]} 40. Bd6 {[%emt 0:00:00]} Rc6 {[%emt 0:00:00]} 41. Bb4 {[%emt 0:05:02]} Rc8 {[%emt 0:04:09]} 42. Be1 {[%emt 0:04:59]} Ne8 {[%emt 0:01:30]} 43. Bd2 {[%emt 0:02:04]} Nf6 {[%emt 0:06:02]} 44. Ra4 {[%emt 0:01:05]} Rb8 {[%emt 0:01:21]} 45. Kf2 {[%emt 0:01:26]} Ne8 {[%emt 0:01:13]} 46. Be1 {[%emt 0:02:12]} Nc7 {[%emt 0:03:18]} 47. Bb4 {[%emt 0:00:46]} Ra8 {[%emt 0:03:00]} 48. Rxa8 {[%emt 0:03:16]} Nxa8 {[%emt 0:00:04]} 49. Bc5 {[%emt 0:01:17]} Bc7 {[%emt 0:02:42]} 50. e4 {[%emt 0:06:51]} fxe4 {[%emt 0:00:51]} 51. fxe4 {[%emt 0:00:07]} Nb6 {[%emt 0:00:16]} 52. Be2 {[%emt 0:02:54]} dxe4 {[%emt 0:04:47]} 53. Bxh5 {[%emt 0:00:07]} Nd5 {[%emt 0:00:36]} 54. Be2 {[%emt 0:00:44]} f5 {[%emt 0:01:23]} 55. Bb5 {[%emt 0:00:38]} Nf6 {[%emt 0:01:20]} 56. Be2 {[%emt 0:01:13]} Kg6 {[%emt 0:00:39]} 57. Be7 {[%emt 0:01:27]} Bb6 {[%emt 0:03:15]} 58. Bc5 {[%emt 0:00:13]} Bc7 {[%emt 0:01:19]} 59. Bb5 {[%emt 0:02:03]} Kf7 {[%emt 0:00:36]} 60. Bc4 {[%emt 0:00:42]} Ng4+ {[%emt 0:01:30]} 61. Kg2 {[%emt 0:01:33]} Ne3+ {[%emt 0:00:37]} 62. Kf2 {[%emt 0:00:50]} Ng4+ {[%emt 0:00:49]} 63. Kg2 {[%emt 0:00:08]} Ne3+ {[%emt 0:00:28]} 64. Kh3 {[%emt 0:00:25]} b6 {[%emt 0:01:13]} 65. Bb4 {[%emt 0:00:18]} Nd5 {[%emt 0:01:07]} 66. Be1 {[%emt 0:01:16]} Nf6 {[%emt 0:00:24]} 67. Be2 {[%emt 0:00:00]} Kg6 {[%emt 0:00:44]} 68. g4 {[%emt 0:00:49]} f4 {[%emt 0:00:23]} 69. h5+ {[%emt 0:00:14]} Kf7 {[%emt 0:00:28]} 70. g5 {[%emt 0:00:23]} f3 {[%emt 0:00:21]} 71. Bxf3 {[%emt 0:00:33]} exf3 {[%emt 0:00:07]} 72. gxf6 {[%emt 0:00:04]} e5 {[%emt 0:01:09]} 73. Bg3 {[%emt 0:00:54]} f2 {[%emt 0:00:45]} 74. Kg2 {[%emt 0:00:18]} f1=Q+ {[%emt 0:00:34]} 75. Kxf1 {[%emt 0:00:06]} Kxf6 {[%emt 0:00:02]} 76. Bxe5+ {[%emt 0:00:13]} Bxe5 {[%emt 0:00:04]} 77. dxe5+ {[%emt 0:00:06]} Kxe5 {[%emt 0:00:02]} 78. Kf2 1-0

[Event "72nd RUS-ch Higher League 2019"]
[Site "Yaroslavl"]
[Date "2019.06.30"]
[Round "4.7"]
[White "Lysyj, Igor"]
[Black "Sakaev, Konstantin"]
[Result "1/2-1/2"]
[ECO "D11"]
[WhiteElo "2623"]
[BlackElo "2584"]
[Annotator "RC"]
[PlyCount "93"]
[EventDate "2019.06.27"]
[EventType "swiss"]
[EventCountry "RUS"]
[SourceTitle "playchess.com"]
[Source "ChessBase"]
[SourceQuality "1"]
[TimeControl "40/5400+30:1800+30"]

1. d4 {[%emt 0:00:00]} d5 {[%emt 0:00:00]} 2. c4 {[%emt 0:00:00]} c6 {[%emt 0:00:00]} 3. Nf3 {[%emt 0:00:00]} Nf6 {[%emt 0:00:03]} 4. g3 {[%emt 0:00:00]} Bg4 {[%emt 0:01:29]} 5. Ne5 {[%emt 0:00:21]} Bf5 {[%emt 0:00:08]} 6. Qb3 {[%emt 0:00:27]} Qb6 {[%emt 0:05:40]} 7. cxd5 {[%emt 0:00:22]} cxd5 {[%emt 0:38:37]} 8. Nc3 {[%emt 0:02:05]} Nc6 {[%emt 0:03:35]} 9. Qxb6 {[%emt 0:02:46]} axb6 {[%emt 0:00:15]} 10. e3 {[%emt 0:02:02]} Bd7 {[%emt 0:08:21]} 11. Nxd7 {[%emt 0:08:00]} Kxd7 {[%emt 0:00:32]} 12. Bd3 {[%emt 0:16:53]} e6 {[%emt 0:00:29]} 13. Ke2 {[%emt 0:01:26]} Be7 {[%emt 0:02:43]} 14. b3 {[%emt 0:11:12]} Ra5 {[%emt 0:05:35]} 15. a3 {[%emt 0:08:04]} Ne8 {[%emt 0:11:01]} 16. Bb2 {[%emt 0:07:40]} Nd6 {[%emt 0:00:38]} 17. h4 {[%emt 0:04:20]} h6 {[%emt 0:01:04]} 18. h5 {[%emt 0:01:58]} Raa8 {[%emt 0:02:42]} 19. g4 {[%emt 0:09:00]} Rhc8 {[%emt 0:01:04]} 20. Nb1 {[%emt 0:07:10]} b5 {[%emt 0:05:57]} 21. Nd2 {[%emt 0:00:48]} b4 {[%emt 0:00:18]} 22. a4 {[%emt 0:00:15]} Na5 {[%emt 0:00:22]} 23. Rac1 {[%emt 0:00:39]} Rxc1 {[%emt 0:04:05]} 24. Rxc1 {[%emt 0:00:03]} b6 {[%emt 0:00:22]} 25. f3 {[%emt 0:03:10]} Bg5 {[%emt 0:00:31]} 26. Rg1 {[%emt 0:01:12]} Rh8 {[%emt 0:00:40]} 27. f4 {[%emt 0:01:29]} Be7 {[%emt 0:00:10]} 28. Kf3 {[%emt 0:01:46]} Bd8 {[%emt 0:00:44]} 29. Ke2 {[%emt 0:02:31]} Be7 {[%emt 0:00:05]} 30. Rg3 {[%emt 0:00:33]} Bh4 {[%emt 0:00:21]} 31. Rh3 {[%emt 0:00:43]} Bf6 {[%emt 0:00:45]} 32. Kd1 {[%emt 0:01:52]} Be7 {[%emt 0:00:26]} 33. Rg3 {[%emt 0:00:25]} Bh4 {[%emt 0:00:46]} 34. Rh3 {[%emt 0:00:28]} Be7 {[%emt 0:00:09]} 35. Rg3 {[%emt 0:00:03]} Bh4 {[%emt 0:00:04]} 36. Rg2 {[%emt 0:00:14]} Be7 {[%emt 0:00:05]} 37. Ke2 {[%emt 0:01:25]} Rc8 {[%emt 0:00:38]} 38. Kd1 {[%emt 0:01:29]} Rh8 {[%emt 0:03:18]} 39. Rg1 {[%emt 0:01:45]} Kc6 {[%emt 0:01:56]} 40. Ke1 {[%emt 0:00:00]} Kd7 {[%emt 0:00:00]} 41. Ke2 {[%emt 0:03:44]} Rc8 {[%emt 0:04:40]} 42. Bb1 {[%emt 0:06:17]} Ra8 {[%emt 0:03:09]} 43. Bc2 {[%emt 0:07:36]} Rc8 {[%emt 0:00:16]} 44. Bd3 {[%emt 0:00:05]} Rh8 {[%emt 0:02:52]} 45. Rg3 {[%emt 0:04:49]} Bh4 {[%emt 0:03:05]} 46. Rh3 {[%emt 0:00:05]} Be7 {[%emt 0:02:20]} 47. Rg3 1/2-1/2